[Event "Open NK Rapid 2025"]
[Site "Helmond, Netherlands"]
[Date "2025.05.03"]
[Round "1.13"]
[White "Stolwijk, Colin"]
[Black "John, Ryan"]
[Result "1-0"]
[TimeControl "15+5"]
[WhiteFideId "1033743"]
[BlackFideId "40102122"]
[WhiteElo "2286"]
[BlackElo "1767"]

1. e4 {[%clk 00:15:07]} {[%emt 00:00:02]} c5 {[%clk 00:15:09]} {[%emt
00:00:02]} 2. Nf3 {[%clk 00:15:10]} {[%emt 00:00:02]} Nc6 {[%clk 00:15:13]}
{[%emt 00:00:02]} 3. Bb5 {[%clk 00:15:10]} {[%emt 00:00:05]} g6 {[%clk
00:15:16]} {[%emt 00:00:02]} 4. Bxc6 {[%clk 00:15:13]} {[%emt 00:00:03]} bxc6
{[%clk 00:15:19]} {[%emt 00:00:01]} 5. O-O {[%clk 00:15:15]} {[%emt 00:00:03]}
Bg7 {[%clk 00:15:22]} {[%emt 00:00:02]} 6. Re1 {[%clk 00:15:17]} {[%emt
00:00:03]} d5 {[%clk 00:15:23]} {[%emt 00:00:05]} 7. e5 {[%clk 00:14:24]}
{[%emt 00:00:57]} e6 {[%clk 00:15:00]} {[%emt 00:00:28]} 8. Nc3 {[%clk
00:14:05]} {[%emt 00:00:24]} Ne7 {[%clk 00:14:47]} {[%emt 00:00:19]} 9. Na4
{[%clk 00:14:07]} {[%emt 00:00:02]} c4 {[%clk 00:14:02]} {[%emt 00:00:51]} 10.
b3 {[%clk 00:14:06]} {[%emt 00:00:05]} cxb3 {[%clk 00:14:05]} {[%emt 00:00:03]}
11. axb3 {[%clk 00:14:08]} {[%emt 00:00:03]} O-O {[%clk 00:14:01]} {[%emt
00:00:09]} 12. Ba3 {[%clk 00:13:22]} {[%emt 00:00:50]} Re8 {[%clk 00:13:37]}
{[%emt 00:00:28]} 13. h4 {[%clk 00:12:41]} {[%emt 00:00:47]} Nf5 {[%clk
00:13:05]} {[%emt 00:00:36]} 14. g3 {[%clk 00:12:41]} {[%emt 00:00:06]} h5
{[%clk 00:12:18]} {[%emt 00:00:51]} 15. d4 {[%clk 00:12:23]} {[%emt 00:00:24]}
Bh6 {[%clk 00:12:03]} {[%emt 00:00:20]} 16. Bc1 {[%clk 00:12:07]} {[%emt
00:00:21]} Bxc1 {[%clk 00:11:28]} {[%emt 00:00:40]} 17. Qxc1 {[%clk 00:12:06]}
{[%emt 00:00:06]} Kg7 {[%clk 00:11:25]} {[%emt 00:00:07]} 18. Nc5 {[%clk
00:11:59]} {[%emt 00:00:13]} Qb6 {[%clk 00:11:00]} {[%emt 00:00:29]} 19. c3
{[%clk 00:11:53]} {[%emt 00:00:13]} Qc7 {[%clk 00:09:58]} {[%emt 00:01:07]} 20.
Ra3 {[%clk 00:11:41]} {[%emt 00:00:16]} Bb7 {[%clk 00:09:00]} {[%emt 00:00:59]}
21. Re2 {[%clk 00:11:42]} {[%emt 00:00:07]} Reb8 {[%clk 00:08:44]} {[%emt
00:00:21]} 22. Rea2 {[%clk 00:11:36]} {[%emt 00:00:13]} Bc8 {[%clk 00:08:47]}
{[%emt 00:00:02]} 23. Qg5 {[%clk 00:10:57]} {[%emt 00:00:44]} Qb6 {[%clk
00:07:40]} {[%emt 00:01:06]} 24. Ra5 {[%clk 00:09:34]} {[%emt 00:01:33]} Qc7
{[%clk 00:06:49]} {[%emt 00:00:56]} 25. Qc1 {[%clk 00:09:00]} {[%emt 00:00:39]}
Rb6 {[%clk 00:05:45]} {[%emt 00:01:08]} 26. Qa1 {[%clk 00:08:51]} {[%emt
00:00:16]} a6 {[%clk 00:05:33]} {[%emt 00:00:17]} 27. b4 {[%clk 00:06:41]}
{[%emt 00:02:15]} Qa7 {[%clk 00:05:06]} {[%emt 00:00:31]} 28. Ne1 {[%clk
00:05:58]} {[%emt 00:00:48]} Rb5 {[%clk 00:04:07]} {[%emt 00:01:04]} 29. R5a4
{[%clk 00:05:49]} {[%emt 00:00:15]} Rb6 {[%clk 00:03:22]} {[%emt 00:00:49]} 30.
Nc2 {[%clk 00:05:51]} {[%emt 00:00:02]} Nh6 {[%clk 00:03:03]} {[%emt 00:00:24]}
31. Ne3 {[%clk 00:05:49]} {[%emt 00:00:09]} Kh7 {[%clk 00:02:41]} {[%emt
00:00:26]} 32. f3 {[%clk 00:05:22]} {[%emt 00:00:32]} Kg7 {[%clk 00:02:19]}
{[%emt 00:00:27]} 33. g4 {[%clk 00:05:16]} {[%emt 00:00:10]} Kh7 {[%clk
00:02:03]} {[%emt 00:00:19]} 34. gxh5 {[%clk 00:04:50]} {[%emt 00:00:35]} gxh5
{[%clk 00:02:05]} {[%emt 00:00:02]} 35. Rg2 {[%clk 00:04:45]} {[%emt 00:00:09]}
Qe7 {[%clk 00:01:24]} {[%emt 00:00:42]} 36. Rg5 {[%clk 00:04:44]} {[%emt
00:00:11]} f6 {[%clk 00:00:39]} {[%emt 00:00:51]} 37. Qb1+ {[%clk 00:04:23]}
{[%emt 00:00:25]} f5 {[%clk 00:00:26]} {[%emt 00:00:18]} 38. Kh1 {[%clk
00:04:05]} {[%emt 00:00:23]} Qf7 {[%clk 00:00:14]} {[%emt 00:00:17]} 39. Qg1
{[%clk 00:04:04]} {[%emt 00:00:06]} Bb7 {[%clk 00:00:09]} {[%emt 00:00:10]} 40.
Ng2 {[%clk 00:04:02]} {[%emt 00:00:07]} Rg8 {[%clk 00:15:05]} {[%emt 00:00:25]}
1-0

[Event "Open NK Rapid 2025"]
[Site "Helmond, Netherlands"]
[Date "2025.05.03"]
[Round "1.14"]
[White "Beardsley, Benjamin"]
[Black "Kuipers-Haast, Anne"]
[Result "0-1"]
[TimeControl "15+5"]
[WhiteFideId "1091905"]
[BlackFideId "1017292"]
[WhiteElo "1763"]
[BlackElo "2272"]

1. e4 {[%clk 00:15:08]} {[%emt 00:00:02]} c5 {[%clk 00:15:08]} {[%emt
00:00:02]} 2. Nc3 {[%clk 00:15:11]} {[%emt 00:00:02]} e6 {[%clk 00:15:11]}
{[%emt 00:00:03]} 3. Nge2 {[%clk 00:15:14]} {[%emt 00:00:01]} Nc6 {[%clk
00:15:08]} {[%emt 00:00:09]} 4. g3 {[%clk 00:15:10]} {[%emt 00:00:08]} Nge7
{[%clk 00:14:46]} {[%emt 00:00:27]} 5. Bg2 {[%clk 00:15:05]} {[%emt 00:00:10]}
Nd4 {[%clk 00:14:45]} {[%emt 00:00:07]} 6. O-O {[%clk 00:14:18]} {[%emt
00:00:51]} Nec6 {[%clk 00:14:47]} {[%emt 00:00:03]} 7. d3 {[%clk 00:13:57]}
{[%emt 00:00:26]} Be7 {[%clk 00:14:45]} {[%emt 00:00:07]} 8. Nxd4 {[%clk
00:13:17]} {[%emt 00:00:45]} cxd4 {[%clk 00:14:25]} {[%emt 00:00:26]} 9. Ne2
{[%clk 00:13:06]} {[%emt 00:00:15]} O-O {[%clk 00:14:21]} {[%emt 00:00:08]} 10.
f4 {[%clk 00:12:24]} {[%emt 00:00:48]} d5 {[%clk 00:14:14]} {[%emt 00:00:12]}
11. exd5 {[%clk 00:12:04]} {[%emt 00:00:25]} exd5 {[%clk 00:14:17]} {[%emt
00:00:02]} 12. f5 {[%clk 00:11:51]} {[%emt 00:00:18]} Bg5 {[%clk 00:13:32]}
{[%emt 00:00:50]} 13. Bxg5 {[%clk 00:11:08]} {[%emt 00:00:48]} Qxg5 {[%clk
00:13:34]} {[%emt 00:00:02]} 14. f6 {[%clk 00:10:57]} {[%emt 00:00:16]} Bg4
{[%clk 00:12:32]} {[%emt 00:01:08]} 15. Qc1 {[%clk 00:09:02]} {[%emt 00:02:00]}
Qe3+ {[%clk 00:09:16]} {[%emt 00:03:21]} 16. Qxe3 {[%clk 00:09:04]} {[%emt
00:00:03]} dxe3 {[%clk 00:09:20]} 17. fxg7 {[%clk 00:07:44]} {[%emt 00:01:25]}
Kxg7 {[%clk 00:08:48]} {[%emt 00:00:37]} 18. Bf3 {[%clk 00:05:29]} {[%emt
00:02:20]} f5 {[%clk 00:06:30]} {[%emt 00:02:23]} 19. c3 {[%clk 00:04:28]}
{[%emt 00:01:07]} Ne5 {[%clk 00:04:57]} {[%emt 00:01:38]} 20. Bxg4 {[%clk
00:04:09]} {[%emt 00:00:24]} fxg4 {[%clk 00:05:01]} {[%emt 00:00:01]} 21. Nf4
{[%clk 00:03:45]} {[%emt 00:00:28]} Rae8 {[%clk 00:04:50]} {[%emt 00:00:17]} 22.
Kg2 {[%clk 00:02:17]} {[%emt 00:01:32]} Rxf4 {[%clk 00:03:22]} {[%emt
00:01:33]} 23. gxf4 {[%clk 00:01:24]} {[%emt 00:00:58]} Nxd3 {[%clk 00:02:30]}
{[%emt 00:00:57]} 24. Rae1 {[%clk 00:01:07]} {[%emt 00:00:22]} Nxe1+ {[%clk
00:02:28]} {[%emt 00:00:07]} 25. Rxe1 {[%clk 00:01:10]} {[%emt 00:00:01]} Kf6
{[%clk 00:02:27]} {[%emt 00:00:07]} 26. h3 {[%clk 00:00:49]} {[%emt 00:00:26]}
Kf5 {[%clk 00:02:22]} {[%emt 00:00:10]} 27. Kg3 {[%clk 00:00:28]} {[%emt
00:00:26]} h5 {[%clk 00:02:26]} 28. Rd1 {[%clk 00:00:17]} {[%emt 00:00:17]} e2
{[%clk 00:02:23]} {[%emt 00:00:08]} 29. Re1 {[%clk 00:00:20]} {[%emt 00:00:01]}
Re3+ {[%clk 00:02:01]} {[%emt 00:00:27]} 30. Kf2 {[%clk 00:00:23]} {[%emt
00:00:01]} Kxf4 {[%clk 00:02:03]} {[%emt 00:00:04]} 31. hxg4 {[%clk 00:00:24]}
{[%emt 00:00:04]} hxg4 {[%clk 00:02:05]} {[%emt 00:00:03]} 32. Kg2 {[%clk
00:00:19]} {[%emt 00:00:10]} Ke4 {[%clk 00:02:01]} {[%emt 00:00:09]} 33. Kf2
{[%clk 00:00:19]} {[%emt 00:00:05]} g3+ {[%clk 00:02:03]} {[%emt 00:00:03]} 34.
Kg2 {[%clk 00:00:23]} {[%emt 00:00:01]} Kd4 {[%emt 00:00:11]} 0-1

[Event "Open NK Rapid 2025"]
[Site "Helmond, Netherlands"]
[Date "2025.05.03"]
[Round "1.15"]
[White "Grochal, Joey"]
[Black "Klute, Leon"]
[Result "1-0"]
[TimeControl "15+5"]
[WhiteFideId "1019945"]
[BlackFideId "1096460"]
[WhiteElo "2261"]
[BlackElo "1761"]

1. d4 {[%clk 00:15:09]} f5 {[%clk 00:15:09]} {[%emt 00:00:01]} 2. c4 {[%clk
00:15:12]} {[%emt 00:00:02]} e6 {[%clk 00:15:13]} {[%emt 00:00:02]} 3. Nf3
{[%clk 00:15:13]} {[%emt 00:00:04]} Nf6 {[%clk 00:15:16]} {[%emt 00:00:01]} 4.
a3 {[%clk 00:15:17]} {[%emt 00:00:01]} a5 {[%clk 00:15:15]} {[%emt 00:00:07]} 5.
Nc3 {[%clk 00:15:19]} {[%emt 00:00:02]} Be7 {[%clk 00:15:17]} {[%emt 00:00:03]}
6. g3 {[%clk 00:15:05]} {[%emt 00:00:19]} O-O {[%clk 00:15:01]} {[%emt
00:00:21]} 7. Bg2 {[%clk 00:15:09]} Ne4 {[%clk 00:15:03]} {[%emt 00:00:04]} 8.
Qc2 {[%clk 00:14:19]} {[%emt 00:00:55]} Nxc3 {[%clk 00:15:05]} {[%emt
00:00:03]} 9. bxc3 {[%clk 00:14:23]} a4 {[%clk 00:13:39]} {[%emt 00:01:32]} 10.
e4 {[%clk 00:14:25]} {[%emt 00:00:02]} fxe4 {[%clk 00:13:17]} {[%emt 00:00:27]}
11. Qxe4 {[%clk 00:14:28]} {[%emt 00:00:01]} d6 {[%clk 00:13:08]} {[%emt
00:00:15]} 12. h4 {[%clk 00:14:15]} {[%emt 00:00:18]} e5 {[%clk 00:11:12]}
{[%emt 00:02:02]} 13. Ng5 {[%clk 00:13:29]} {[%emt 00:00:49]} Bxg5 {[%clk
00:10:25]} {[%emt 00:00:53]} 14. hxg5 {[%clk 00:13:23]} {[%emt 00:00:11]} Bf5
{[%clk 00:09:46]} {[%emt 00:00:44]} 15. Qxb7 {[%clk 00:13:00]} {[%emt
00:00:27]} Ra5 {[%clk 00:08:39]} {[%emt 00:01:12]} 16. Be3 {[%clk 00:12:44]}
{[%emt 00:00:21]} Nd7 {[%clk 00:07:04]} {[%emt 00:01:40]} 17. O-O {[%clk
00:12:10]} {[%emt 00:00:39]} Qc8 {[%clk 00:06:42]} {[%emt 00:00:28]} 18. Qb4
{[%clk 00:11:54]} {[%emt 00:00:21]} Qa6 {[%clk 00:06:10]} {[%emt 00:00:37]} 19.
Bb7 {[%clk 00:10:05]} {[%emt 00:01:53]} Qa7 {[%clk 00:05:43]} {[%emt 00:00:33]}
20. Bd5+ {[%clk 00:09:19]} {[%emt 00:00:50]} Kh8 {[%clk 00:05:40]} {[%emt
00:00:09]} 21. Qb2 {[%clk 00:08:27]} {[%emt 00:00:57]} Rb8 {[%clk 00:05:19]}
{[%emt 00:00:26]} 22. Qe2 {[%clk 00:08:10]} {[%emt 00:00:22]} Qa6 {[%clk
00:05:17]} {[%emt 00:00:07]} 23. Qf3 {[%clk 00:06:21]} {[%emt 00:01:53]} Bg6
{[%clk 00:04:27]} {[%emt 00:00:56]} 24. Rfd1 {[%clk 00:05:51]} {[%emt
00:00:35]} Rf8 {[%emt 00:00:18]} 25. Qg4 {[%clk 00:05:48]} Nb6 {[%clk
00:04:12]} {[%emt 00:00:16]} 26. dxe5 {[%clk 00:05:43]} {[%emt 00:00:09]} Nxd5
{[%clk 00:04:05]} {[%emt 00:00:11]} 27. cxd5 {[%clk 00:05:18]} {[%emt
00:00:31]} dxe5 {[%clk 00:04:06]} {[%emt 00:00:04]} 28. Qb4 {[%clk 00:05:08]}
{[%emt 00:00:14]} Qa8 {[%clk 00:03:59]} {[%emt 00:00:12]} 29. c4 {[%clk
00:05:03]} {[%emt 00:00:11]} Ra6 {[%clk 00:03:45]} {[%emt 00:00:19]} 30. Qe7
{[%clk 00:04:57]} {[%emt 00:00:11]} Rb6 {[%clk 00:02:42]} {[%emt 00:01:04]} 31.
Bxb6 {[%clk 00:04:56]} {[%emt 00:00:11]} cxb6 {[%clk 00:02:46]} {[%emt
00:00:01]} 32. Qxe5 {[%clk 00:04:28]} {[%emt 00:00:32]} Re8 {[%clk 00:02:30]}
{[%emt 00:00:22]} 33. Qb2 {[%clk 00:04:09]} {[%emt 00:00:23]} Qc8 {[%clk
00:02:12]} {[%emt 00:00:22]} 34. Re1 {[%clk 00:03:51]} {[%emt 00:00:23]} Rf8
{[%clk 00:01:58]} {[%emt 00:00:20]} 35. Qd4 {[%clk 00:03:47]} {[%emt 00:00:09]}
Qd8 {[%clk 00:01:36]} {[%emt 00:00:26]} 36. f4 {[%clk 00:03:38]} {[%emt
00:00:14]} Be8 {[%clk 00:01:16]} {[%emt 00:00:25]} 37. Re2 {[%clk 00:03:25]}
{[%emt 00:00:18]} Qd6 {[%clk 00:01:02]} {[%emt 00:00:20]} 38. Re6 {[%clk
00:03:21]} {[%emt 00:00:09]} Qc5 {[%clk 00:00:59]} {[%emt 00:00:08]} 39. Qxc5
{[%clk 00:03:24]} {[%emt 00:00:02]} bxc5 {[%clk 00:01:03]} {[%emt 00:00:01]} 40.
d6 {[%clk 00:03:19]} {[%emt 00:00:10]} Bf7 {[%clk 00:00:48]} {[%emt 00:00:20]}
41. Re7 {[%clk 00:03:17]} {[%emt 00:00:07]} Kg8 {[%clk 00:00:50]} {[%emt
00:00:03]} 42. Rd1 {[%clk 00:03:03]} {[%emt 00:00:18]} Rd8 {[%clk 00:00:47]}
{[%emt 00:00:08]} 43. Rc7 {[%clk 00:03:01]} {[%emt 00:00:07]} Kf8 {[%clk
00:00:41]} {[%emt 00:00:12]} 44. Rxc5 {[%clk 00:03:03]} {[%emt 00:00:02]} Bh5
{[%clk 00:00:17]} {[%emt 00:00:29]} 45. Rd3 {[%clk 00:02:59]} {[%emt 00:00:09]}
Bg4 {[%clk 00:00:16]} {[%emt 00:00:06]} 46. Rc7 {[%clk 00:03:00]} {[%emt
00:00:04]} Bf5 {[%clk 00:00:16]} {[%emt 00:00:05]} 47. Rd5 {[%clk 00:02:58]}
{[%emt 00:00:08]} Be6 {[%clk 00:00:16]} {[%emt 00:00:04]} 48. Rd2 {[%clk
00:02:50]} {[%emt 00:00:13]} Rd7 {[%clk 00:00:11]} {[%emt 00:00:11]} 49. Rxd7
{[%clk 00:02:52]} {[%emt 00:00:03]} Bxd7 {[%clk 00:00:15]} {[%emt 00:00:01]} 50.
Re2 {[%clk 00:02:53]} {[%emt 00:00:03]} Kf7 {[%clk 00:00:16]} {[%emt 00:00:04]}
51. Re7+ {[%clk 00:02:57]} {[%emt 00:00:02]} 1-0

[Event "Open NK Rapid 2025"]
[Site "Helmond, Netherlands"]
[Date "2025.05.03"]
[Round "1.16"]
[White "Tetova, Amir"]
[Black "Hilwerda, Jonas"]
[Result "0-1"]
[TimeControl "15+5"]
[WhiteFideId "1095838"]
[BlackFideId "1046713"]
[WhiteElo "1759"]
[BlackElo "2233"]

1. d4 {[%clk 00:15:09]} Nf6 {[%clk 00:15:09]} {[%emt 00:00:02]} 2. Nf3 {[%clk
00:15:13]} {[%emt 00:00:01]} g6 {[%clk 00:15:12]} {[%emt 00:00:02]} 3. Bf4
{[%clk 00:15:16]} {[%emt 00:00:01]} b6 {[%clk 00:15:13]} {[%emt 00:00:05]} 4.
e3 {[%clk 00:15:20]} Bb7 {[%clk 00:15:17]} 5. Be2 {[%clk 00:15:21]} {[%emt
00:00:03]} Bg7 {[%clk 00:15:20]} {[%emt 00:00:03]} 6. c3 {[%clk 00:15:25]} d6
{[%clk 00:15:22]} {[%emt 00:00:03]} 7. Nbd2 {[%clk 00:15:29]} {[%emt 00:00:01]}
O-O {[%clk 00:15:19]} {[%emt 00:00:08]} 8. O-O {[%clk 00:15:32]} {[%emt
00:00:01]} Ne4 {[%clk 00:15:19]} {[%emt 00:00:06]} 9. Nxe4 {[%clk 00:15:35]}
{[%emt 00:00:02]} Bxe4 {[%clk 00:15:21]} {[%emt 00:00:02]} 10. Nd2 {[%clk
00:15:39]} {[%emt 00:00:01]} Bb7 {[%clk 00:15:22]} {[%emt 00:00:05]} 11. Bf3
{[%clk 00:15:43]} {[%emt 00:00:01]} c6 {[%clk 00:15:21]} {[%emt 00:00:06]} 12.
b4 {[%clk 00:15:42]} {[%emt 00:00:06]} e5 {[%clk 00:15:23]} {[%emt 00:00:03]}
13. dxe5 {[%clk 00:15:44]} {[%emt 00:00:03]} dxe5 {[%clk 00:15:25]} {[%emt
00:00:02]} 14. Bg3 {[%clk 00:15:48]} {[%emt 00:00:02]} f5 {[%clk 00:14:17]}
{[%emt 00:01:13]} 15. Qb3+ {[%clk 00:15:17]} {[%emt 00:00:36]} Kh8 {[%clk
00:14:14]} {[%emt 00:00:07]} 16. h3 {[%clk 00:15:08]} {[%emt 00:00:14]} e4
{[%clk 00:12:41]} {[%emt 00:01:39]} 17. Bxe4 {[%clk 00:14:31]} {[%emt
00:00:42]} Qxd2 {[%clk 00:10:50]} {[%emt 00:01:56]} 18. Bf3 {[%clk 00:13:51]}
{[%emt 00:00:45]} Qxc3 {[%clk 00:10:35]} {[%emt 00:00:19]} 19. Qe6 {[%clk
00:13:08]} {[%emt 00:00:48]} Qf6 {[%clk 00:10:38]} {[%emt 00:00:03]} 20. Qxf6
{[%clk 00:12:09]} {[%emt 00:01:03]} Bxf6 {[%clk 00:10:20]} {[%emt 00:00:23]} 21.
Rac1 {[%clk 00:12:13]} a6 {[%clk 00:06:29]} {[%emt 00:03:56]} 22. a4 {[%clk
00:11:35]} {[%emt 00:00:43]} Ra7 {[%clk 00:06:30]} {[%emt 00:00:05]} 23. Bc7
{[%clk 00:11:16]} {[%emt 00:00:23]} Nd7 {[%clk 00:05:06]} {[%emt 00:01:30]} 24.
Rfd1 {[%clk 00:10:57]} {[%emt 00:00:24]} Rf7 {[%clk 00:04:09]} {[%emt
00:01:01]} 25. Bxc6 {[%clk 00:10:34]} {[%emt 00:00:28]} Bxc6 {[%clk 00:03:55]}
{[%emt 00:00:20]} 26. Rxc6 {[%clk 00:10:38]} {[%emt 00:00:01]} b5 {[%clk
00:03:06]} {[%emt 00:00:54]} 27. a5 {[%clk 00:10:06]} {[%emt 00:00:37]} Ne5
{[%clk 00:03:02]} {[%emt 00:00:09]} 28. Rxf6 {[%clk 00:09:33]} {[%emt
00:00:36]} Rfxc7 {[%clk 00:03:06]} {[%emt 00:00:02]} 29. Re6 {[%clk 00:08:50]}
{[%emt 00:00:48]} Nf7 {[%clk 00:02:44]} {[%emt 00:00:27]} 30. Rb6 {[%clk
00:08:20]} {[%emt 00:00:35]} Kg7 {[%clk 00:02:41]} {[%emt 00:00:09]} 31. f4
{[%clk 00:08:14]} {[%emt 00:00:10]} Kf8 {[%clk 00:02:39]} {[%emt 00:00:07]} 32.
Rb8+ {[%clk 00:08:17]} {[%emt 00:00:03]} Ke7 {[%clk 00:02:37]} {[%emt
00:00:07]} 33. Rb6 {[%clk 00:08:19]} {[%emt 00:00:03]} Rc4 {[%clk 00:02:34]}
{[%emt 00:00:07]} 34. Rb1 {[%clk 00:08:15]} {[%emt 00:00:10]} Nd8 {[%clk
00:01:54]} {[%emt 00:00:45]} 35. Rb8 {[%clk 00:07:59]} {[%emt 00:00:20]} Nc6
{[%clk 00:01:58]} {[%emt 00:00:01]} 36. Rh8 {[%clk 00:07:58]} {[%emt 00:00:07]}
Ke6 {[%clk 00:01:56]} {[%emt 00:00:06]} 37. Re8+ {[%clk 00:08:00]} {[%emt
00:00:03]} Kf7 {[%clk 00:01:56]} {[%emt 00:00:06]} 38. Rc8 {[%clk 00:07:59]}
{[%emt 00:00:05]} Nxa5 {[%clk 00:01:54]} {[%emt 00:00:08]} 39. Rh8 {[%clk
00:07:23]} {[%emt 00:00:41]} Kg7 {[%clk 00:01:57]} {[%emt 00:00:01]} 40. Rd8
{[%clk 00:07:20]} {[%emt 00:00:08]} Nc6 {[%clk 00:02:00]} {[%emt 00:00:03]} 41.
Rd6 {[%clk 00:07:12]} {[%emt 00:00:13]} Nxb4 {[%clk 00:01:55]} {[%emt
00:00:10]} 42. Ra1 {[%clk 00:07:03]} {[%emt 00:00:14]} a5 {[%clk 00:01:58]}
{[%emt 00:00:01]} 43. Rb6 {[%clk 00:07:06]} {[%emt 00:00:02]} Rc5 {[%clk
00:02:00]} {[%emt 00:00:04]} 44. Rd6 {[%clk 00:07:05]} {[%emt 00:00:06]} a4
{[%clk 00:02:03]} {[%emt 00:00:02]} 45. Rd4 {[%clk 00:07:09]} {[%emt 00:00:01]}
Nc2 {[%clk 00:02:05]} {[%emt 00:00:02]} 46. Rc1 {[%clk 00:07:11]} {[%emt
00:00:03]} Nxd4 {[%clk 00:02:04]} {[%emt 00:00:07]} 47. Rxc5 {[%clk 00:07:15]}
a3 {[%clk 00:02:06]} {[%emt 00:00:04]} 48. exd4 {[%clk 00:06:57]} {[%emt
00:00:22]} a2 {[%clk 00:02:10]} {[%emt 00:00:01]} 0-1

[Event "Open NK Rapid 2025"]
[Site "Helmond, Netherlands"]
[Date "2025.05.03"]
[Round "1.17"]
[White "Grooten, Herman"]
[Black "Pieper, Roy"]
[Result "1-0"]
[TimeControl "15+5"]
[WhiteFideId "1000330"]
[BlackFideId "40101215"]
[WhiteElo "2219"]
[BlackElo "1758"]

1. d4 {[%clk 00:15:08]} {[%emt 00:00:01]} d5 {[%clk 00:15:09]} {[%emt
00:00:02]} 2. c4 {[%clk 00:15:12]} {[%emt 00:00:01]} e6 {[%clk 00:15:09]}
{[%emt 00:00:04]} 3. Nc3 {[%clk 00:15:15]} {[%emt 00:00:01]} a6 {[%clk
00:15:11]} {[%emt 00:00:04]} 4. cxd5 {[%clk 00:15:18]} {[%emt 00:00:02]} exd5
{[%clk 00:15:15]} {[%emt 00:00:01]} 5. Nf3 {[%clk 00:15:19]} {[%emt 00:00:04]}
Nf6 {[%clk 00:15:14]} {[%emt 00:00:07]} 6. Bg5 {[%clk 00:15:22]} {[%emt
00:00:01]} Be7 {[%clk 00:15:13]} {[%emt 00:00:06]} 7. e3 {[%clk 00:15:24]}
{[%emt 00:00:04]} O-O {[%clk 00:15:13]} {[%emt 00:00:04]} 8. Bd3 {[%clk
00:15:27]} {[%emt 00:00:01]} Bg4 {[%clk 00:15:08]} {[%emt 00:00:11]} 9. Qc2
{[%clk 00:15:22]} {[%emt 00:00:10]} h6 {[%clk 00:14:39]} {[%emt 00:00:34]} 10.
Bh4 {[%clk 00:15:07]} {[%emt 00:00:20]} Nc6 {[%clk 00:14:26]} {[%emt 00:00:18]}
11. a3 {[%clk 00:15:06]} {[%emt 00:00:06]} Re8 {[%clk 00:14:12]} {[%emt
00:00:19]} 12. h3 {[%clk 00:14:55]} {[%emt 00:00:16]} Be6 {[%clk 00:14:06]}
{[%emt 00:00:11]} 13. O-O-O {[%clk 00:14:48]} {[%emt 00:00:12]} Qd7 {[%clk
00:12:23]} {[%emt 00:01:48]} 14. g4 {[%clk 00:14:09]} {[%emt 00:00:45]} g5
{[%clk 00:10:21]} {[%emt 00:02:06]} 15. Bg3 {[%clk 00:13:59]} {[%emt 00:00:14]}
Bxg4 {[%clk 00:06:25]} {[%emt 00:04:02]} 16. hxg4 {[%emt 00:00:06]} Nxg4 {[%clk
00:06:25]} {[%emt 00:00:02]} 17. Bf5 {[%clk 00:14:01]} {[%emt 00:00:05]} Nxe3
{[%clk 00:04:13]} {[%emt 00:02:17]} 18. fxe3 {[%clk 00:13:57]} {[%emt
00:00:09]} Qd8 {[%clk 00:04:09]} {[%emt 00:00:10]} 19. Rxh6 {[%clk 00:13:57]}
{[%emt 00:00:05]} Bf6 {[%clk 00:03:55]} {[%emt 00:00:17]} 20. Bxc7 {[%clk
00:13:37]} {[%emt 00:00:26]} Qxc7 {[%clk 00:03:12]} {[%emt 00:00:48]} 21. Nxd5
{[%clk 00:13:39]} {[%emt 00:00:03]} Qg3 {[%clk 00:02:08]} {[%emt 00:01:10]} 22.
Nxf6+ {[%clk 00:13:38]} {[%emt 00:00:05]} Kg7 {[%clk 00:02:07]} {[%emt
00:00:06]} 23. Nh5+ {[%clk 00:13:39]} {[%emt 00:00:03]} 1-0